bitfinex/quotes_ETHUSD_20260130
["timestamp","ask_amount","ask_price","bid_price","bid_amount"]
[1769786334740,0.01101564,2736.9,2735.0,1.30252232]
[1769786334940,13.16964456,2736.6,2734.2,0.73600465]
[1769786335161,13.1806602,2736.9,2734.7,0.91417705]
[1769786335376,0.01101564,2736.7,2734.7,0.91417705]
[1769786335545,13.1806602,2736.7,2734.7,0.91617705]
[1769786335881,3.585484,2736.4,2734.7,0.002]
[1769786336180,0.55887029,2736.3,2734.7,0.002]
[1769786336684,13.72851485,2736.3,2734.7,0.002]
[1769786336843,0.766,2736.4,2734.7,0.002]
[1769786337338,0.766,2736.4,2734.8,0.91414363]
[1769786337541,0.766,2736.4,2734.7,0.91615683]
[1769786337767,0.01101564,2736.8,2734.7,0.91615683]
[1769786337768,2.196046,2736.7,2734.7,0.91615683]
[1769786338077,13.16964456,2736.7,2734.8,0.45729649]
[1769786338370,0.766,2736.8,2734.8,0.46831213]
[1769786338572,0.766,2736.8,2735.1,0.2335703]
[1769786338873,3.214336,2736.7,2734.8,0.45729649]
[1769786339085,13.16964456,2736.7,2734.8,0.45729649]
[1769786339378,1.39356446,2736.6,2734.9,0.9141102]
[1769786339749,1.39356446,2736.6,2734.8,4.11373731]
[1769786339750,1.39356446,2736.6,2734.8,1.3714213]
[1769786339953,2.42055,2736.5,2734.8,0.45729649]
[1769786340291,13.1806602,2736.4,2734.7,0.91616432]
[1769786340451,13.1806602,2736.4,2734.8,0.91414231]
[1769786340648,1.39356446,2736.6,2734.8,0.91414231]
[1769786340853,6.62938,2736.9,2734.8,0.91414231]
[1769786341083,13.93664456,2737.0,2734.9,13.03623884]
[1769786341284,13.93664456,2737.0,2735.0,0.91407678]
[1769786341853,13.16964456,2736.8,2734.7,0.01301564]
[1769786342188,0.11341564,2736.9,2734.9,0.91408055]
[1769786342360,0.767,2737.0,2735.0,0.45705413]
[1769786342560,0.767,2737.0,2735.1,0.01101564]
[1769786342775,0.767,2737.0,2735.3,13.03623884]
[1769786343157,13.93664456,2737.0,2735.2,0.91400994]
[1769786343377,0.767,2737.0,2735.2,0.91400994]
[1769786343580,0.767,2737.0,2735.3,0.48036844]
[1769786343782,13.16964456,2736.8,2735.0,0.45705413]
[1769786343971,13.16964456,2736.4,2734.7,0.002]
[1769786344169,13.16964456,2736.2,2734.7,0.002]
[1769786344363,13.1806602,2736.1,2734.7,0.002]
[1769786344891,13.93564456,2736.0,2734.7,0.002]
[1769786345091,13.16964456,2735.8,2734.7,0.002]
[1769786345252,13.16964456,2735.8,2733.5,3.66928482]
[1769786345253,13.16964456,2735.5,2733.1,0.01301564]
[1769786345458,13.16964456,2735.4,2733.6,0.91454022]
[1769786346077,13.16964456,2735.4,2733.6,0.91452716]
[1769786346078,7.040266,2735.3,2733.6,0.91452716]
[1769786346253,13.1806602,2735.3,2733.6,0.9145448]
[1769786346458,0.55897029,2735.2,2733.6,0.9145448]
[1769786347290,0.55897029,2735.2,2733.3,0.9146453]
[1769786347479,0.55897029,2735.2,2733.5,0.01101564]
[1769786347670,13.69821085,2735.8,2733.5,0.01101564]
[1769786347988,13.59581085,2735.8,2733.7,0.01101564]
[1769786348176,2.09355,2735.4,2733.3,0.9146453]
[1769786348377,13.60682649,2735.3,2733.3,0.9146453]
[1769786348559,13.59581085,2735.0,2733.2,0.91465575]
[1769786348759,1.36068265,2734.9,2733.2,0.91465575]
[1769786349085,14.9564935,2734.9,2733.2,0.91465575]
[1769786349287,14.9564935,2734.9,2733.1,0.002]
[1769786349501,14.9564935,2734.9,2733.8,0.002]
[1769786350017,1.36068265,2734.9,2733.8,0.002]
[1769786350176,0.766,2735.1,2733.8,0.002]
[1769786350371,13.59581085,2735.4,2733.8,0.002]
[1769786350572,0.767,2735.6,2733.8,0.002]
[1769786350874,13.59581085,2735.2,2733.8,0.002]
[1769786351372,0.767,2735.6,2733.8,0.002]
[1769786351576,1.43628108,2735.5,2733.8,0.002]
[1769786351900,13.59581085,2735.3,2733.8,0.002]
[1769786352213,13.59581085,2735.2,2733.8,0.002]
[1769786353510,1.44729672,2735.5,2733.8,0.002]
[1769786353675,1.43628108,2735.5,2733.8,0.002]
[1769786353871,0.22032811,2735.4,2733.8,0.002]
[1769786354083,3.318259,2735.3,2733.8,0.002]
[1769786354288,13.59581085,2735.4,2733.8,0.002]
[1769786354726,0.01101564,2735.7,2733.8,0.2355703]
[1769786354876,0.01101564,2735.7,2733.8,0.002]
[1769786354877,16.89568185,2735.7,2733.8,0.002]
[1769786355077,13.59581085,2735.7,2733.8,0.002]
[1769786355380,2.442541,2735.6,2733.8,0.002]
[1769786355707,13.60682649,2735.4,2733.8,0.002]
[1769786356088,13.59581085,2735.0,2733.8,0.002]
[1769786356291,13.59581085,2734.8,2733.8,0.002]
[1769786356516,1.43628108,2734.7,2733.8,0.002]
[1769786357101,15.03209193,2734.7,2733.5,0.002]
[1769786357415,13.60682649,2734.5,2733.5,0.002]
[1769786357581,13.60682649,2734.5,2733.1,0.002]
[1769786357582,19.22298085,2734.2,2733.1,0.002]
[1769786357787,0.767,2734.1,2733.1,0.002]
[1769786357990,0.51735523,2734.0,2733.1,0.002]
[1769786358432,0.767,2734.1,2733.1,0.002]
[1769786358714,14.36281085,2734.1,2733.1,0.002]
[1769786360730,0.767,2734.1,2733.1,0.002]
[1769786361016,13.60682649,2734.0,2733.1,0.002]
[1769786361315,13.59581085,2734.0,2733.1,0.002]
[1769786361492,1.43628108,2733.9,2733.1,0.002]
[1769786361893,4.121023,2734.4,2733.3,0.002]
[1769786362096,13.59581085,2734.5,2733.3,0.002]
[1769786362299,0.767,2734.4,2733.3,0.002]
[1769786362502,0.767,2734.8,2733.3,0.002]
[1769786362819,6.8249,2734.5,2733.3,0.002]
[1769786362987,13.59581085,2734.5,2733.3,0.002]
[1769786363388,13.59581085,2734.3,2733.3,0.002]
[1769786363686,0.1024,2734.5,2733.3,0.002]
[1769786363908,17.55145285,2734.3,2733.3,0.002]
[1769786364124,13.59581085,2734.0,2733.0,0.002]
[1769786364333,13.59581085,2733.8,2733.0,0.002]
[1769786365118,13.59581085,2733.8,2732.8,0.0213237]
[1769786365357,13.59581085,2733.8,2731.3,0.19039376]
[1769786365358,13.59581085,2733.3,2731.3,0.19039376]
[1769786365520,13.59581085,2733.1,2731.3,0.9153032]
[1769786365725,1.43628108,2733.0,2731.4,0.01101564]
[1769786366034,0.767,2733.1,2731.6,0.01101564]
[1769786366376,0.767,2733.1,2731.3,0.9153032]
[1769786366377,3.48555,2733.8,2731.8,12.84511864]
[1769786366657,0.767,2733.7,2731.9,12.85613428]
[1769786366822,14.36281085,2733.7,2732.1,0.01101564]
[1769786367023,0.01101564,2732.9,2731.3,0.91528667]
[1769786367250,0.01101564,2732.9,2730.7,0.63739919]
[1769786367251,0.01101564,2732.5,2730.7,0.63739919]
[1769786367524,0.767,2733.0,2730.7,0.63739919]
[1769786367525,0.767,2733.0,2730.8,13.76060128]
[1769786367753,13.59581085,2733.2,2730.8,13.76060128]
[1769786367964,0.51735522,2733.1,2731.0,12.84511864]
[1769786368124,0.51735522,2733.1,2731.1,0.767]
[1769786368125,14.11316607,2733.1,2731.1,0.767]
[1769786368655,0.51735522,2733.1,2731.3,12.84511864]
[1769786368857,14.36281085,2733.6,2731.3,12.84511864]
[1769786369068,14.36281085,2733.6,2731.4,12.84511864]
[1769786369276,17.10166685,2733.5,2731.4,12.84511864]
[1769786369586,2.823404,2733.4,2731.4,13.76037017]
[1769786369791,13.59581085,2733.1,2730.9,1.8826931]
[1769786369937,13.59581085,2732.7,2730.7,1.55289043]
[1769786370141,6.285902,2732.6,2730.7,0.63739919]
[1769786370374,13.59581085,2732.7,2731.0,0.91540571]
[1769786370871,13.59581085,2732.7,2731.1,0.91538039]
[1769786371174,13.60682649,2732.4,2730.7,0.63739919]
[1769786371373,13.59581085,2732.0,2730.1,0.91571501]
[1769786371550,13.59581085,2732.0,2730.2,0.92668828]
[1769786371750,13.59581085,2732.0,2730.2,0.01101564]
[1769786371950,14.95539193,2731.9,2730.2,1.29773063]
[1769786372255,14.95539193,2731.9,2730.1,0.9157036]
[1769786372885,1.35958108,2731.9,2730.4,0.01101564]
[1769786373096,2.827861,2732.7,2730.8,0.01101564]
[1769786373242,28.33446,2733.2,2731.1,12.85613428]
[1769786373587,13.59581085,2733.3,2731.4,0.91528154]
[1769786373796,1.35958108,2733.3,2731.5,1.75426984]
[1769786374085,4.539451,2733.6,2731.5,1.75426984]
[1769786374257,13.59581085,2733.6,2731.5,1.75426984]
[1769786374460,13.59581085,2733.6,2731.6,0.767]
[1769786374840,0.767,2733.9,2731.5,1.75426984]
[1769786374841,13.59581085,2733.4,2731.5,1.75426984]
[1769786375044,13.59581085,2733.4,2731.6,0.767]
[1769786375246,1.35958108,2733.3,2731.7,1.01802542]
[1769786375446,1.35958108,2733.3,2731.8,0.91514752]
[1769786375879,13.59581085,2733.7,2731.8,1.68214752]
[1769786376369,13.59581085,2733.7,2731.8,0.91514752]
[1769786376678,13.59581085,2733.7,2731.8,1.68214752]
[1769786376854,0.001,2733.9,2732.0,13.6085084]
[1769786377061,0.001,2733.9,2732.3,0.01101564]
[1769786377480,12.8405266,2733.9,2732.2,0.91501354]
[1769786377681,12.8405266,2733.9,2732.3,0.767]
[1769786377882,0.001,2733.9,2732.3,0.767]
[1769786378181,0.001,2733.9,2732.3,13.63973264]
[1769786378348,0.001,2733.9,2732.1,0.92604787]
[1769786378349,0.001,2733.9,2732.8,0.01101564]
[1769786378553,0.001,2733.9,2733.1,0.01101564]
[1769786379080,0.001,2733.9,2733.1,0.767]
[1769786379378,0.001,2733.9,2732.4,1.36397326]
[1769786379550,0.001,2733.9,2732.0,3.66022752]
[1769786379551,12.8405266,2733.9,2732.0,3.66022752]
[1769786379751,12.8405266,2733.9,2732.1,0.767]
[1769786381050,12.8405266,2733.9,2732.2,0.767]
[1769786381452,12.8405266,2733.9,2732.0,3.66022752]
[1769786381453,12.8395266,2733.7,2731.7,1.16618198]
[1769786381653,12.8395266,2733.5,2731.7,1.16618198]
[1769786381883,1.28505422,2733.4,2731.8,0.1933182]
[1769786382054,12.8405266,2733.9,2731.8,0.1933182]
[1769786382249,12.8395266,2733.7,2731.8,0.1933182]
[1769786382571,12.8395266,2733.5,2731.8,0.1933182]
[1769786383089,0.01101564,2733.8,2731.8,0.1933182]
[1769786383450,12.8405266,2733.9,2731.8,0.1933182]
[1769786383651,14.12468082,2733.8,2731.9,0.91511402]
[1769786384077,14.12468082,2733.8,2731.9,13.78784666]
[1769786384287,1.28515422,2733.8,2731.9,13.7988623]
[1769786384577,0.001,2733.9,2731.9,13.7988623]
[1769786384980,12.8405266,2733.9,2732.0,0.767]
[1769786385371,12.8395266,2733.7,2732.0,0.767]
[1769786385679,12.8395266,2733.7,2731.9,1.68211402]
[1769786386961,0.001,2733.9,2732.0,12.88374828]
[1769786387167,0.001,2733.9,2732.2,12.88374828]
[1769786387788,0.001,2733.9,2732.4,12.88374828]
[1769786388010,0.001,2733.9,2732.8,12.87273264]
[1769786388213,0.001,2733.9,2732.9,0.767]
[1769786388374,0.001,2733.7,2732.8,12.87273264]
[1769786388713,0.001,2733.7,2732.9,2.05427326]
[1769786388862,0.001,2733.7,2732.9,0.767]
[1769786389062,0.001,2733.9,2732.9,0.767]
[1769786389264,0.001,2733.9,2732.4,0.01101564]
[1769786389491,0.001,2733.9,2732.5,0.767]
[1769786389782,0.001,2733.9,2732.6,0.9148796]
[1769786389984,0.001,2733.9,2732.7,1.3011398]
[1769786390360,0.001,2733.9,2732.7,0.5341398]
[1769786390561,0.001,2733.9,2732.8,13.63973264]
[1769786390799,0.001,2735.2,2732.9,13.11731858]
[1769786390982,0.001,2735.2,2733.2,12.88374828]
[1769786391292,1.28405266,2735.1,2733.3,1.28837483]
[1769786391618,1.28405266,2735.1,2733.4,0.01101564]
[1769786392087,1.28405266,2735.1,2733.5,14.55431101]
[1769786392286,0.001,2735.2,2733.5,14.55431101]
[1769786392585,12.8405266,2735.2,2733.5,1.68157837]
[1769786392787,12.8405266,2735.2,2733.5,0.91457837]
[1769786392983,12.8405266,2735.2,2733.6,0.767]
[1769786393367,12.8405266,2735.2,2733.3,1.28837483]
[1769786393565,12.8405266,2735.2,2732.9,0.91477318]
[1769786393566,12.8395266,2734.8,2732.9,0.91477318]
[1769786393769,12.8395266,2734.6,2733.0,0.767]
[1769786394090,12.8395266,2734.6,2733.0,1.68174291]
[1769786394294,12.8395266,2734.6,2733.0,0.767]
[1769786395586,12.8395266,2734.6,2732.8,0.91479336]
[1769786395799,12.8395266,2734.4,2732.8,0.91479336]
[1769786395976,12.8395266,2734.4,2732.5,0.91491308]
[1769786396389,0.66958365,2734.5,2732.6,12.88374828]
[1769786396589,12.8395266,2734.9,2732.8,12.88374828]
[1769786396803,12.8395266,2734.9,2733.0,0.01101564]
[1769786397202,12.8395266,2734.9,2732.9,0.767]
[1769786398500,12.8395266,2734.9,2733.0,0.9147457]
[1769786398878,12.8395266,2734.9,2733.0,0.92576134]
[1769786399078,1.28395266,2734.8,2733.1,0.53518674]
[1769786399273,14.12347926,2734.8,2733.1,0.53518674]
[1769786399498,14.12347926,2734.8,2732.9,0.91475565]
[1769786400185,14.12347926,2734.8,2732.9,0.92577129]
[1769786400374,14.12347926,2734.8,2732.9,0.91475565]
[1769786400580,14.12347926,2734.8,2733.0,0.767]
[1769786400989,14.12347926,2734.8,2732.8,3.67026475]
[1769786400990,14.12347926,2734.8,2732.6,0.91486876]
[1769786401192,12.8395266,2734.2,2732.1,14.32931887]
[1769786401480,12.8395266,2734.0,2732.1,2.37162822]
[1769786401785,12.8395266,2734.0,2732.0,0.002]
[1769786401786,12.8395266,2734.0,2732.0,0.01301564]
[1769786402108,4.626,2734.1,2732.0,0.002]
[1769786402109,12.8395266,2733.4,2732.0,0.002]
[1769786402316,12.8395266,2733.2,2732.0,0.002]
[1769786402678,12.8395266,2733.2,2732.9,0.002]
[1769786402976,12.8395266,2733.7,2732.0,0.002]
[1769786403190,14.12347926,2733.6,2732.0,0.002]
[1769786405821,14.12347926,2733.6,2731.8,0.002]
[1769786405822,12.8395266,2733.2,2731.8,0.002]
[1769786406113,12.8395266,2732.9,2731.8,0.002]
[1769786406416,12.8395266,2732.9,2730.8,0.91546308]
[1769786406417,12.8395266,2732.7,2730.8,0.91547606]
[1769786406715,13.21515673,2732.5,2730.9,1.37339632]
[1769786406915,13.21515673,2732.3,2730.7,0.002]
[1769786409019,13.21515673,2732.1,2730.1,0.002]
[1769786409183,13.21515673,2731.5,2730.1,0.002]
[1769786409384,13.21515673,2731.2,2730.1,0.002]
[1769786409601,13.98215673,2731.1,2730.1,0.002]
[1769786411531,13.21515673,2730.2,2728.6,0.19051113]
[1769786411822,0.01101564,2728.5,2726.7,0.9168362]
[1769786412037,13.98215673,2728.5,2726.6,0.91689226]
[1769786412233,13.98215673,2728.5,2726.2,0.01101564]
[1769786412416,13.98215673,2728.5,2726.5,0.01101564]
[1769786412617,13.98215673,2728.5,2726.8,0.91681939]
[1769786412816,13.98215673,2728.5,2726.6,0.91689283]
[1769786412817,1.39821567,2728.4,2726.6,0.91689283]
[1769786412994,1.40923131,2728.4,2726.6,0.91689283]
[1769786413351,14.62438804,2728.4,2726.5,0.916912]
[1769786413493,14.62438804,2728.4,2725.2,0.19060637]
[1769786413494,13.21515673,2727.7,2725.2,0.19060637]
[1769786413691,15.798162,2728.3,2725.7,3.66877708]
[1769786413692,13.21515673,2727.5,2725.7,3.66877708]
[1769786413894,13.21515673,2727.5,2725.3,3.66927387]
[1769786413895,0.768,2728.1,2726.5,0.91692552]
[1769786414097,13.21515673,2729.5,2727.0,13.57568302]
[1769786414344,14.62438549,2729.9,2727.5,13.57568302]
[1769786414518,0.768,2729.7,2727.5,13.57568302]
[1769786414748,14.62438549,2729.9,2728.1,13.57568302]
[1769786414749,1.40922876,2729.9,2728.1,13.57568302]
[1769786414922,1.40922876,2729.9,2729.0,0.002]
[1769786415128,0.768,2730.7,2729.0,0.002]
[1769786415616,0.01101564,2730.4,2729.0,0.002]
[1769786415823,13.21515673,2730.4,2729.0,0.002]
[1769786416130,1.32151567,2730.3,2729.0,0.002]
[1769786416447,0.77901564,2730.6,2729.0,0.002]
[1769786416448,13.22617237,2730.0,2729.0,0.002]
[1769786416647,0.01101564,2729.8,2729.0,0.002]
[1769786416855,13.21515673,2730.0,2729.0,0.002]
[1769786417220,0.77901564,2730.6,2729.0,0.002]
[1769786417221,0.768,2730.6,2729.0,0.002]
[1769786417940,13.21515673,2731.2,2729.0,0.002]
[1769786418143,1.32151567,2731.1,2729.0,13.56666738]
[1769786418339,1.32151567,2731.1,2729.2,0.01101564]
[1769786418548,0.01101564,2731.0,2729.0,0.002]
[1769786418750,0.01101564,2731.1,2729.0,0.91808647]
[1769786419054,0.01101564,2731.2,2729.0,0.91808647]
[1769786419237,0.768,2731.3,2729.1,13.57568302]
[1769786419437,0.768,2731.3,2729.3,13.57568302]
[1769786419650,0.01101564,2731.2,2729.4,1.3575683]
[1769786419846,13.98315673,2731.3,2729.2,14.33266738]
[1769786419847,0.768,2731.3,2729.2,14.33266738]
[1769786420227,0.768,2731.3,2729.3,0.01101564]
[1769786420450,13.21515673,2731.0,2729.0,0.01301564]
[1769786420658,0.01101564,2730.7,2729.0,0.002]
[1769786420952,0.768,2731.3,2729.0,13.56666738]
[1769786421156,0.01101564,2731.0,2729.1,2.1257683]
[1769786421337,0.01101564,2730.6,2729.0,0.002]
[1769786421537,0.01101564,2731.0,2729.0,0.002]
[1769786422138,0.01101564,2730.8,2729.0,0.002]
[1769786422746,13.22617237,2731.0,2729.0,0.002]
[1769786422937,0.01101564,2730.8,2729.0,0.002]
[1769786423141,1.3237188,2730.8,2729.0,0.002]
[1769786423560,0.01101564,2731.0,2729.0,0.002]
[1769786423763,0.01101564,2731.2,2729.0,0.002]
[1769786423937,0.768,2731.3,2729.0,0.002]
[1769786424136,0.01101564,2731.2,2729.0,13.56666738]
[1769786424364,13.21515673,2731.5,2729.2,13.56466738]
[1769786424684,0.29850915,2732.3,2729.8,0.2335703]
[1769786424884,0.01101564,2731.6,2730.0,0.91575091]
[1769786425070,0.01101564,2731.4,2729.3,14.92223568]
[1769786425272,0.01101564,2731.2,2729.4,1.49332513]
[1769786425472,0.01101564,2731.0,2729.3,0.91596827]
[1769786425689,0.36175656,2731.3,2729.2,13.56466738]
[1769786425985,13.21515673,2731.5,2729.8,0.91580693]
[1769786426168,13.21515673,2731.5,2729.7,0.91583006]
[1769786426370,13.21515673,2731.5,2729.8,0.91580038]
[1769786426575,13.21515673,2731.5,2729.3,4.43191052]
[1769786426576,0.01101564,2731.4,2729.7,0.91585113]
[1769786426771,0.01101564,2731.4,2729.3,0.768]
[1769786426772,0.01101564,2731.4,2729.3,0.91598578]
[1769786426972,1.32261724,2731.3,2729.4,15.37912701]
[1769786427352,0.77901564,2731.8,2729.4,15.37912701]
[1769786427553,0.01101564,2731.6,2729.4,15.37912701]
[1769786427753,0.77901564,2731.8,2729.4,15.37912701]
[1769786427754,13.99417237,2731.8,2729.4,15.37912701]
[1769786427956,0.768,2731.8,2729.5,13.80925332]
[1769786428154,0.768,2731.8,2729.8,0.2335703]
[1769786428355,0.768,2731.8,2729.9,14.94559271]
[1769786428762,0.768,2731.8,2730.1,0.91571737]
[1769786429153,0.768,2731.8,2730.0,14.49141944]
[1769786429352,0.768,2731.8,2730.0,1.68373642]
[1769786429581,0.768,2731.8,2730.0,15.2484038]
[1769786429884,0.001,2731.9,2730.2,13.79823768]
[1769786430090,0.001,2731.9,2730.1,2.04136082]
[1769786430310,0.01101564,2731.8,2730.1,0.768]
[1769786430603,0.01101564,2731.7,2729.9,1.38092533]
[1769786430895,13.21615673,2731.9,2730.0,0.91574399]
[1769786431188,13.22617237,2731.6,2729.1,0.01101564]
[1769786431391,13.22617237,2731.6,2729.5,0.768]
[1769786431589,0.01101564,2731.5,2729.5,0.768]
[1769786431902,0.01101564,2731.5,2729.9,0.91578026]
[1769786432270,13.21515673,2731.6,2729.9,0.91578026]
[1769786432466,0.001,2731.9,2729.9,0.91578026]
[1769786432666,0.001,2731.9,2730.0,14.02256662]
[1769786432867,0.01101564,2731.6,2730.0,1.37364148]
[1769786433069,0.001,2731.9,2730.0,1.37364148]
[1769786433312,13.21615673,2731.9,2730.0,1.37364148]
[1769786433471,13.21515673,2731.7,2729.9,0.91577972]
[1769786433897,13.21515673,2731.7,2729.8,0.91580754]
[1769786434077,13.21515673,2731.7,2729.9,0.91576702]
[1769786434280,13.21515673,2731.7,2729.8,0.91579661]
[1769786434499,13.21515673,2731.7,2729.8,0.91579966]
[1769786434805,13.21515673,2731.5,2729.4,0.91595222]
[1769786435295,13.21515673,2731.5,2729.3,4.44282453]
[1769786435296,13.21515673,2731.3,2729.1,0.91603266]
[1769786435503,13.21515673,2730.9,2729.0,0.002]
[1769786435707,13.21515673,2730.3,2729.0,0.002]
[1769786435870,13.21515673,2730.2,2729.0,0.002]
[1769786436376,13.1346485,2730.8,2729.0,0.002]
[1769786436569,13.12363286,2730.7,2729.0,0.002]
[1769786437003,13.12363286,2730.5,2729.0,0.002]
[1769786437216,1.31346485,2730.4,2729.0,0.002]
[1769786437725,13.28222423,2730.9,2729.0,0.002]
[1769786438272,0.769,2731.2,2729.0,0.002]
[1769786438712,14.05122423,2731.2,2729.0,0.002]
[1769786438919,14.05122423,2731.2,2729.0,0.91808647]
[1769786440015,13.28322423,2731.2,2729.1,0.2335703]
[1769786440356,13.28322423,2731.2,2729.5,0.2335703]
[1769786440357,1.32942399,2731.1,2729.5,0.2335703]
[1769786440561,0.001,2731.2,2729.5,0.24458594]
[1769786441160,0.001,2731.2,2729.7,0.01101564]
[1769786441459,0.001,2731.2,2729.6,1.68388511]
[1769786441962,0.001,2731.2,2729.7,0.01101564]
[1769786442112,0.001,2731.9,2730.1,0.2335703]
[1769786442317,0.001,2731.9,2730.3,0.2335703]
[1769786442516,0.001,2731.9,2729.2,0.1024]
[1769786442517,13.29323987,2731.4,2729.2,0.1024]
[1769786442819,13.29323987,2731.4,2729.5,0.91591817]
[1769786443234,13.28222423,2731.4,2729.3,0.91598578]
[1769786444327,13.28222423,2731.4,2729.3,1.68398578]
[1769786444540,14.61044665,2731.3,2729.4,0.53589446]
[1769786445329,14.61044665,2731.3,2729.5,0.91591866]
[1769786446452,14.61044665,2731.3,2729.7,0.01101564]
[1769786446453,1.32822242,2731.3,2729.7,0.01101564]
[1769786446753,0.001,2731.9,2729.9,13.81316806]
[1769786446953,0.001,2731.9,2730.1,13.81316806]
[1769786447153,0.001,2731.9,2730.5,0.01101564]
[1769786447648,0.001,2731.9,2730.6,0.91554969]
[1769786449722,0.001,2731.7,2730.5,0.91555999]
[1769786449920,0.001,2731.7,2730.6,0.45779939]
[1769786450165,0.001,2731.7,2730.4,0.91559856]
[1769786450452,0.001,2731.7,2730.5,0.91557263]
[1769786450762,0.001,2731.7,2730.6,14.03572272]
[1769786451461,0.001,2731.9,2730.6,14.03572272]
[1769786451627,0.001,2731.9,2730.7,0.91551616]
[1769786451823,0.001,2731.9,2730.8,1.86133035]
[1769786452154,0.001,2731.9,2730.6,0.91554757]
[1769786452462,0.01101564,2732.7,2730.7,14.03572272]
[1769786452754,0.01201564,2733.0,2730.6,0.91554757]
[1769786452755,0.001,2733.0,2731.1,0.2335703]
[1769786452921,0.001,2733.0,2731.2,0.768]
[1769786453519,0.001,2733.0,2731.3,0.91531505]
[1769786453741,0.001,2733.0,2731.4,0.53446179]
[1769786453939,0.01101564,2732.9,2731.4,0.53446179]
[1769786454137,0.001,2733.0,2731.4,0.53446179]
[1769786454354,13.29323987,2732.9,2731.4,0.53446179]
[1769786454554,0.01101564,2732.3,2730.8,0.91547786]
[1769786454719,0.01101564,2732.1,2730.8,0.91547786]
[1769786454922,0.01101564,2732.3,2730.9,0.91544113]
[1769786455133,13.29323987,2732.5,2730.7,1.68348446]
[1769786455319,13.29323987,2732.5,2731.0,0.91541543]
[1769786455539,1.32932399,2732.4,2730.8,1.14905294]
[1769786455744,13.28222423,2732.8,2730.8,1.14905294]
[1769786456126,13.28222423,2732.8,2730.7,18.23217187]
[1769786456127,13.28222423,2732.4,2730.7,1.6834935]
[1769786456522,13.29323987,2732.3,2730.7,0.9154935]
[1769786456767,13.29323987,2732.0,2730.3,0.9156269]
[1769786456929,13.29323987,2732.0,2730.5,0.9155732]
[1769786457131,1.32932399,2731.9,2730.4,0.91558926]
[1769786457344,1.32932399,2731.9,2730.4,0.91559121]
[1769786457626,1.32932399,2731.9,2729.9,4.4310596]
[1769786457627,1.32932399,2731.9,2730.0,0.91575091]
[1769786457831,1.32932399,2731.9,2730.3,0.2335703]
[1769786458145,13.28222423,2732.5,2730.3,14.04673836]
[1769786458535,0.11341564,2733.2,2730.3,14.04673836]
[1769786458536,13.29423987,2733.0,2730.9,0.2335703]
[1769786458737,13.29423987,2733.0,2731.0,0.768]
[1769786458937,13.28322423,2733.0,2731.1,0.2335703]
[1769786459158,13.29323987,2732.9,2730.8,13.80215242]
[1769786459358,13.29323987,2732.7,2730.9,1.38131681]
[1769786459662,13.28222423,2732.7,2731.1,0.91538208]
[1769786460228,13.28222423,2732.7,2731.0,0.91539811]
[1769786460458,13.28222423,2732.7,2731.0,1.14896841]
[1769786460640,13.28222423,2732.7,2731.0,0.91539811]
[1769786461051,13.28222423,2732.7,2730.9,0.768]
[1769786461052,13.28222423,2732.5,2730.9,0.91544769]
[1769786461258,0.62421232,2732.4,2730.9,1.4499885]
[1769786461563,0.62421232,2732.4,2730.9,0.53454081]
[1769786461764,0.62421232,2732.4,2730.8,0.002]
[1769786461765,13.29323987,2732.2,2730.8,0.002]
[1769786462061,0.01101564,2731.6,2729.6,13.80215242]
[1769786462277,13.28222423,2732.0,2730.2,0.91568217]
[1769786462467,13.28222423,2732.0,2730.0,3.6629953]
[1769786462627,0.768,2732.1,2730.5,0.002]
[1769786462628,14.62266386,2731.9,2730.5,0.002]
[1769786462959,13.29323987,2731.5,2730.5,0.002]
[1769786463129,13.29323987,2731.5,2729.6,0.91586666]
[1769786463330,13.29323987,2731.5,2729.5,0.002]
[1769786463331,13.28222423,2731.1,2729.5,0.002]
[1769786463657,13.28222423,2730.7,2729.5,0.002]
[1769786463960,0.01101564,2730.8,2729.0,0.002]
[1769786463961,13.91745219,2730.6,2729.0,0.002]
[1769786464458,13.28222423,2730.2,2729.0,0.002]
[1769786464663,13.28222423,2729.8,2727.9,0.91643784]
[1769786464827,0.01101564,2729.6,2727.9,0.91643784]
[1769786465032,13.29323987,2729.6,2727.6,3.66621066]
[1769786465260,0.01101564,2729.4,2727.8,0.91648502]
[1769786465432,1.32932399,2729.5,2728.2,0.91635046]
[1769786465776,0.01101564,2729.6,2727.7,0.91652307]
[1769786465972,13.28222423,2729.5,2727.7,0.91652307]
[1769786466576,0.01101564,2730.0,2727.7,14.70031293]
[1769786466794,13.90098454,2730.0,2728.0,0.2335703]
[1769786466937,13.90098454,2730.0,2727.9,13.7948055]
[1769786467314,13.90098454,2731.0,2728.8,0.01101564]
[1769786467439,0.01101564,2730.6,2728.0,15.17428605]
[1769786467640,13.91200018,2730.6,2728.3,0.01101564]
[1769786467834,13.90098454,2730.3,2728.1,0.92740433]
[1769786468062,14.68000018,2730.2,2728.1,0.92740433]
[1769786468277,13.91200018,2730.0,2728.2,0.67404397]
[1769786468439,13.90098454,2729.5,2727.4,0.003]
[1769786468636,14.66898454,2729.5,2727.6,0.91653753]
[1769786468840,14.66898454,2729.5,2727.9,0.91643755]
[1769786469060,14.66898454,2729.5,2727.6,0.91653362]
[1769786469257,14.38662083,2729.4,2727.4,0.003]
[1769786469471,0.48563629,2729.4,2728.0,0.9164102]
[1769786469674,13.90098454,2729.7,2727.8,0.91648947]
[1769786469897,13.91200018,2729.7,2727.8,0.91648947]
[1769786470255,13.90098454,2729.4,2727.8,0.91648947]
[1769786470887,13.91200018,2729.9,2727.8,0.91648947]
[1769786471085,13.91200018,2729.9,2727.9,14.01736016]
[1769786471086,13.90098454,2729.9,2727.9,14.01736016]
[1769786471261,1.39009845,2729.8,2728.0,1.49338496]
[1769786471462,15.30209863,2729.8,2728.0,1.49338496]
[1769786471788,15.30209863,2729.8,2725.5,0.01101564]
[1769786471789,0.01101564,2728.0,2725.5,0.01101564]
[1769786472087,0.01101564,2728.0,2725.7,0.7045515]
[1769786472088,0.01101564,2727.6,2725.7,0.7045515]
[1769786472391,0.20207294,2728.0,2725.7,14.499357]
[1769786472682,13.91200018,2727.7,2725.8,1.81681393]
[1769786472886,13.90098454,2727.7,2725.7,0.7045515]
[1769786473254,13.90098454,2727.5,2725.7,0.91716447]
[1769786473659,14.86004184,2728.0,2725.6,13.78378986]